lending/lending_fUSD_20250131
["ID","MTS","AMOUNT","RATE_DAILY","PERIOD"]
[351032322,1738302636881,-660.19,0.00019178,2]
[351032323,1738302636891,-594.13252085,0.00019178,2]
[351032324,1738302636901,-532.31,0.00019178,2]
[351032325,1738302636910,-500.0,0.00019178,2]
[351032326,1738302636921,-508.47099298,0.00019178,2]
[351032327,1738302636931,-964.35,0.00019178,2]
[351032328,1738302636941,-500.0,0.00019178,2]
[351032329,1738302636951,-551.8,0.00019178,2]
[351032330,1738302636962,-574.76,0.00019178,2]
[351032331,1738302636971,-500.0,0.00019178,2]
[351032332,1738302636983,-616.35,0.00019178,2]
[351032333,1738302636993,-384.84938243,0.00019178,2]
[351032334,1738302637003,-500.0,0.00019178,2]
[351032335,1738302637012,-500.0,0.00019178,2]
[351032336,1738302637023,-1007.99,0.00019178,2]
[351032337,1738302637034,-1101.97,0.00019178,2]
[351032338,1738302637044,-500.0,0.00019178,2]
[351032339,1738302637053,-500.0,0.00019178,2]
[351032340,1738302637063,-579.05,0.00019178,2]
[351032341,1738302637072,-579.53237462,0.00019178,2]
[351032342,1738302637083,-500.0,0.00019178,2]
[351032343,1738302637094,-500.0,0.00019178,2]
[351032344,1738302637103,-500.0,0.00019178,2]
[351032345,1738302637113,-1109.97,0.00019178,2]
[351032346,1738302637123,-500.0,0.00019178,2]
[351032347,1738302637132,-1141.62,0.00019178,2]
[351032348,1738302637142,-526.82531891,0.00019178,2]
[351032349,1738302637151,-500.0,0.00019178,2]
[351032350,1738302637161,-500.0,0.00019178,2]
[351032351,1738302637171,-500.0,0.00019178,2]
[351032352,1738302637181,-500.0,0.00019178,2]
[351032353,1738302637190,-1624.24,0.00019178,2]
[351032354,1738302637200,-608.19,0.00019178,2]
[351032355,1738302637210,-1397.64,0.00019178,2]
[351032356,1738302637219,-414.03125663,0.00019178,2]
[351032357,1738302637229,-916.34,0.00019178,2]
[351032358,1738302637240,-3802.94,0.00019178,2]
[351032359,1738302637250,-515.34429113,0.00019178,2]
[351032360,1738302637260,-500.0,0.00019178,2]
[351032361,1738302637270,-442.11037345,0.00019178,2]
[351032362,1738302637280,-1406.58,0.00019178,2]
[351032363,1738302637289,-500.0,0.00019178,2]
[351032364,1738302637300,-721.05,0.00019178,2]
[351032365,1738302637310,-329.74422028,0.00019178,2]
[351032366,1738302637321,-500.0,0.00019178,2]
[351032367,1738302637331,-1028.73,0.00019178,2]
[351032368,1738302637340,-504.05734614,0.00019178,2]
[351032369,1738302637350,-500.0,0.00019178,2]
[351032370,1738302637360,-1552.98,0.00019178,2]
[351032371,1738302637370,-500.0,0.00019178,2]
[351032372,1738302637382,-236.64951652,0.00019178,2]
[351032373,1738302637392,-1207.48,0.00019178,2]
[351032374,1738302637401,-1239.37,0.00019178,2]
[351032375,1738302637411,-500.0,0.00019178,2]
[351032376,1738302637421,-1421.22,0.00019178,2]
[351032377,1738302637431,-500.0,0.00019178,2]
[351032379,1738302637441,-1990.4,0.00019178,2]
[351032380,1738302637451,-583.97,0.00019178,2]
[351032381,1738302637461,-500.0,0.00019178,2]
[351032382,1738302637472,-500.0,0.00019178,2]
[351032383,1738302637482,-2687.57,0.00019178,2]
[351032384,1738302637492,-1588.61,0.00019178,2]
[351032385,1738302637504,-500.0,0.00019178,2]
[351032386,1738302637515,-500.0,0.00019178,2]
[351032387,1738302637525,-500.0,0.00019178,2]
[351032388,1738302637535,-1945.74,0.00019178,2]
[351032389,1738302637548,-1420.31,0.00019178,2]
[351032390,1738302637558,-500.0,0.00019178,2]
[351032391,1738302637568,-500.0,0.00019178,2]
[351032392,1738302637578,-627.57,0.00019178,2]
[351032393,1738302637588,-686.23,0.00019178,2]
[351032394,1738302637600,-500.0,0.00019178,2]
[351032395,1738302637615,-500.0,0.00019178,2]
[351032396,1738302637627,-3073.51,0.00019178,2]
[351032397,1738302637638,-995.77,0.00019178,2]
[351032398,1738302637648,-500.0,0.00019178,2]
[351032399,1738302637659,-2957.4,0.00019178,2]
[351032400,1738302637668,-1253.53,0.00019178,2]
[351032401,1738302637679,-4790.72,0.00019178,2]
[351032402,1738302637689,-500.0,0.00019178,2]
[351032403,1738302637699,-2786.11,0.00019178,2]
[351032404,1738302637711,-654.49,0.00019178,2]
[351032405,1738302637721,-3002.79,0.00019178,2]
[351032406,1738302637731,-2506.48,0.00019178,2]
[351032407,1738302637741,-504.87581513,0.00019178,2]
[351032408,1738302637751,-500.0,0.00019178,2]
[351032409,1738302637761,-687.39,0.00019178,2]
[351032410,1738302637771,-7738.12,0.00019178,2]
[351032411,1738302637782,-500.0,0.00019178,2]
[351032412,1738302637793,-401.72112394,0.00019178,2]
[351032413,1738302637803,-500.0,0.00019178,2]
[351032414,1738302637813,-1267.21,0.00019178,2]
[351032415,1738302637823,-500.0,0.00019178,2]
[351032416,1738302637833,-500.0,0.00019178,2]
[351032417,1738302637843,-15606.5,0.00019178,2]
[351032418,1738302637855,-1298.55,0.00019178,2]
[351032419,1738302637865,-500.0,0.00019178,2]
[351032420,1738302637874,-827.95,0.00019178,2]
[351032421,1738302637884,-500.0,0.00019178,2]
[351032422,1738302637894,-1872.7,0.00019178,2]
[351032423,1738302637904,-500.0,0.00019178,2]
[351032424,1738302637916,-500.0,0.00019178,2]
[351032425,1738302637927,-500.0,0.00019178,2]
[351032426,1738302637940,-500.0,0.00019178,2]
[351032427,1738302637950,-1129.05,0.00019178,2]
[351032428,1738302637961,-500.0,0.00019178,2]
[351032429,1738302637972,-1871.34,0.00019178,2]
[351032430,1738302637982,-500.0,0.00019178,2]
[351032431,1738302637993,-500.0,0.00019178,2]
[351032432,1738302638003,-500.0,0.00019178,2]
[351032433,1738302638014,-1733.04,0.00019178,2]
[351032434,1738302638025,-758.44,0.00019178,2]
[351032435,1738302638035,-500.0,0.00019178,2]
[351032436,1738302638045,-1385.07,0.00019178,2]
[351032437,1738302638055,-500.0,0.00019178,2]
[351032438,1738302638064,-2042.62,0.00019178,2]
[351032439,1738302638075,-8680.59,0.00019178,2]
[351032440,1738302638084,-2417.47,0.00019178,2]
[351032442,1738302638094,-1447.23584702,0.00019178,2]
[351032449,1738302638157,-131.64415298,0.00019178,2]
[351032451,1738302638168,-500.0,0.00019178,2]
[351032453,1738302638178,-500.0,0.00019178,2]
[351032455,1738302638187,-1757.34,0.00019178,2]
[351032457,1738302638198,-1041.19,0.00019178,2]
[351032459,1738302638213,-1169.82584702,0.00019178,2]
[351032462,1738302638230,-475.49962009,0.00019178,2]
[351032464,1738302638242,-19.20453289,0.00019178,2]
[351032466,1738302638252,-500.0,0.00019178,2]
[351032468,1738302638262,-1340.79969704,0.00019178,2]
[351032472,1738302638278,-1094.13301427,0.00019178,2]
[351032474,1738302638290,-1461.45728869,0.00019178,2]
[351032476,1738302638300,-2053.54,0.00019178,2]
[351032478,1738302638310,-996.13,0.00019178,2]
[351032481,1738302638321,-500.0,0.00019178,2]
[351032483,1738302638331,-2504.72,0.00019178,2]
[351032485,1738302638340,-2167.61,0.00019178,2]
[351032487,1738302638350,-1499.86,0.00019178,2]
[351032489,1738302638359,-500.0,0.00019178,2]
[351032491,1738302638369,-234.03808726,0.00019178,2]
[351032493,1738302638379,-500.0,0.00019178,2]
[351032495,1738302638388,-500.0,0.00019178,2]
[351032497,1738302638398,-3567.47,0.00019178,2]
[351032499,1738302638408,-2281.42,0.00019178,2]
[351032501,1738302638418,-1598.0,0.00019178,2]
[351032503,1738302638427,-4589.57,0.00019178,2]
[351032505,1738302638437,-1436.83,0.00019178,2]
[351032507,1738302638448,-500.0,0.00019178,2]
[351032509,1738302638457,-500.0,0.00019178,2]
[351032510,1738302638467,-500.0,0.00019178,2]
[351032513,1738302638476,-500.0,0.00019178,2]
[351032514,1738302638486,-531.14829359,0.00019178,2]
[351032517,1738302638496,-633.0,0.00019178,2]
[351032519,1738302638512,-645.73,0.00019178,2]
[351032521,1738302638522,-557.95,0.00019178,2]
[351032522,1738302638532,-2148.06,0.00019178,2]
[351032524,1738302638543,-1702.74,0.00019178,2]
[351032527,1738302638553,-1305.49,0.00019178,2]
[351032528,1738302638563,-5325.61,0.00019178,2]
[351032531,1738302638573,-500.0,0.00019178,2]
[351032533,1738302638583,-2950.63,0.00019178,2]
[351032535,1738302638595,-997.14,0.00019178,2]
[351032537,1738302638604,-1705.81,0.00019178,2]
[351032539,1738302638615,-1568.53,0.00019178,2]
[351032541,1738302638625,-615.77268878,0.00019178,2]
[351032544,1738302638642,-768.70731122,0.00019178,2]
[351032546,1738302638652,-1395.29268878,0.00019178,2]
[351032548,1738302638669,-387.645,0.00019178,2]
[351032550,1738302638681,-1756.97231122,0.00019178,2]
[351032552,1738302638690,-512.95956816,0.00019178,2]
[351032554,1738302638701,-3615.68,0.00019178,2]
[351032565,1738302638797,-994.29,0.00019178,2]
[351032567,1738302638808,-512.26647194,0.00019178,2]
[351032569,1738302638818,-763.88,0.00019178,2]
[351032571,1738302638827,-10055.06,0.00019178,2]
[351032573,1738302638837,-500.0,0.00019178,2]
[351032575,1738302638846,-500.0,0.00019178,2]
[351032577,1738302638856,-500.0,0.00019178,2]
[351032579,1738302638865,-5195.87,0.00019178,2]
[351032581,1738302638874,-500.0,0.00019178,2]
[351032583,1738302638884,-902.77,0.00019178,2]
[351032585,1738302638893,-500.0,0.00019178,2]
[351032587,1738302638902,-1398.39,0.00019178,2]
[351032589,1738302638912,-1309.88,0.00019178,2]
[351032591,1738302638921,-9779.21,0.00019178,2]
[351032593,1738302638930,-500.0,0.00019178,2]
[351032595,1738302638940,-500.0,0.00019178,2]
[351032597,1738302638949,-500.0,0.00019178,2]
[351032599,1738302638959,-8196.15,0.00019178,2]
[351032601,1738302638969,-5296.65,0.00019178,2]
[351032603,1738302638978,-500.0,0.00019178,2]
[351032605,1738302638988,-507.24128681,0.00019178,2]
[351032607,1738302638997,-895.1,0.00019178,2]
[351032609,1738302639007,-854.24,0.00019178,2]
[351032611,1738302639016,-178.47863965,0.00019178,2]
[351032703,1738302639875,-6713.67136035,0.00019178,2]
[351032705,1738302639885,-906.32863965,0.00019178,2]
[351032708,1738302639900,-2183.04136035,0.00019178,2]
[351032710,1738302639909,-500.0,0.00019178,2]
[351032712,1738302639919,-5162.45,0.00019178,2]
[351032714,1738302639929,-933.335441,0.00019178,2]
[351032716,1738302639940,-2309.144559,0.00019178,2]
[351032718,1738302639950,-826.34,0.00019178,2]
[351032720,1738302639959,-814.78686636,0.00019178,2]
[351032722,1738302639971,-159.22313364,0.00019178,2]
[351032724,1738302639980,-500.0,0.00019178,2]
[351032726,1738302639989,-508.29658568,0.00019178,2]
[351032728,1738302639998,-1924.68,0.00019178,2]
[351032730,1738302640007,-519.73,0.00019178,2]
[351032731,1738302640016,-673.69,0.00019178,2]
[351032732,1738302640025,-500.0,0.00019178,2]
[351032733,1738302640033,-688.18,0.00019178,2]
[351032734,1738302640043,-513.81877584,0.00019178,2]
[351032735,1738302640052,-500.0,0.00019178,2]
[351032736,1738302640061,-3532.86,0.00019178,2]
[351032737,1738302640070,-2932.19,0.00019178,2]
[351032738,1738302640079,-525.1,0.00019178,2]
[351032739,1738302640088,-947.21522021,0.00019178,2]
[351032740,1738302640100,-3619.02477979,0.00019178,2]
[351032741,1738302640109,-3877.16,0.00019178,2]
[351032742,1738302640118,-1631.15,0.00019178,2]
[351032744,1738302640127,-500.0,0.00019178,2]
[351032746,1738302640136,-517.97184078,0.00019178,2]
[351032748,1738302640145,-9621.1,0.00019178,2]
[351032750,1738302640154,-500.0,0.00019178,2]
[351032752,1738302640164,-507.93259512,0.00019178,2]
[351032754,1738302640173,-500.0,0.00019178,2]
[351032756,1738302640182,-667.14,0.00019178,2]
[351032758,1738302640191,-894.76,0.00019178,2]
[351032760,1738302640200,-1008.05,0.00019178,2]
[351032762,1738302640211,-4490.21,0.00019178,2]
[351032764,1738302640220,-4355.22,0.00019178,2]
[351032766,1738302640230,-500.0,0.00019178,2]
[351032768,1738302640244,-167.00917701,0.00019178,2]
[351032770,1738302640253,-503.44825034,0.00019178,2]
[351032772,1738302640263,-699.45,0.00019178,2]
[351032774,1738302640272,-876.55,0.00019178,2]
[351032776,1738302640282,-709.5,0.00019178,2]
[351032778,1738302640291,-1759.53,0.00019178,2]
[351032780,1738302640300,-1000.0,0.00019178,2]
[351032782,1738302640309,-1617.73,0.00019178,2]
[351032785,1738302640319,-2389.09560647,0.00019178,2]
[351032853,1738302640942,-279.58439353,0.00019178,2]
[351032855,1738302640952,-930.60171586,0.00019178,2]
[351032857,1738302640966,-2537.25828414,0.00019178,2]
[351032859,1738302640976,-2090.27,0.00019178,2]
[351032861,1738302640986,-500.0,0.00019178,2]
[351032863,1738302640997,-500.0,0.00019178,2]
[351032866,1738302641007,-1397.25863608,0.00019178,2]
[351032868,1738302641024,-3147.11392817,0.00019178,2]
[351032871,1738302641036,-323.09,0.00019178,2]
[351032873,1738302641047,-251.61849997,0.00019178,2]
[351032876,1738302641064,-5041.35769467,0.00019178,2]
[351032878,1738302641075,-342.22124111,0.00019178,2]
[351032880,1738302641085,-640.56,0.00019178,2]
[351032882,1738302641095,-3444.84,0.00019178,2]
[351032884,1738302641105,-3348.82615889,0.00019178,2]
[351032886,1738302641117,-1700.23384111,0.00019178,2]
[351032889,1738302641130,-510.04104244,0.00019178,2]
[351032891,1738302641140,-500.0,0.00019178,2]
[351032893,1738302641150,-1143.72511646,0.00019178,2]
[351032895,1738302641164,-713.38488354,0.00019178,2]
[351032898,1738302641176,-9198.11,0.00019178,2]
[351032900,1738302641187,-624.32,0.00019178,2]
[351032902,1738302641196,-6695.11,0.00019178,2]
[351032904,1738302641207,-1132.21,0.00019178,2]
[351032906,1738302641217,-1815.6,0.00019178,2]
[351032908,1738302641227,-500.0,0.00019178,2]
[351032910,1738302641238,-500.0,0.00019178,2]
[351032912,1738302641248,-4107.66,0.00019178,2]
[351032915,1738302641258,-604.29564851,0.00019178,2]
[351032917,1738302641269,-508.11125616,0.00019178,2]
[351032919,1738302641279,-3644.82,0.00019178,2]
[351032921,1738302641289,-870.41,0.00019178,2]
[351032923,1738302641299,-1332.12,0.00019178,2]
[351032925,1738302641309,-2795.4,0.00019178,2]
[351032928,1738302641332,-1184.59,0.00019178,2]
[351032931,1738302641344,-1325.28,0.00019178,2]
[351032933,1738302641354,-1181.44,0.00019178,2]
[351032935,1738302641365,-541.03,0.00019178,2]
[351032937,1738302641376,-3742.4,0.00019178,2]
[351032939,1738302641386,-500.0,0.00019178,2]
[351032942,1738302641397,-1201.85,0.00019178,2]
[351032944,1738302641407,-500.0,0.00019178,2]
[351032946,1738302641418,-500.0,0.00019178,2]
[351032948,1738302641428,-1253.91,0.00019178,2]
[351032950,1738302641438,-500.0,0.00019178,2]
[351032952,1738302641450,-1306.85,0.00019178,2]
[351032954,1738302641461,-500.0,0.00019178,2]
[351032957,1738302641471,-1946.23,0.00019178,2]
[351032959,1738302641482,-279.6471828,0.00019178,2]
[351032961,1738302641492,-500.0,0.00019178,2]
[351032963,1738302641504,-551.24935564,0.00019178,2]
[351032965,1738302641515,-500.0,0.00019178,2]
[351032967,1738302641525,-500.0,0.00019178,2]
[351032969,1738302641537,-500.0,0.00019178,2]
[351032971,1738302641547,-2024.32,0.00019178,2]
[351032973,1738302641558,-519.9,0.00019178,2]
[351032975,1738302641569,-392.41765763,0.00019178,2]
[351032978,1738302641582,-640.42234237,0.00019178,2]
[351032980,1738302641592,-2287.62,0.00019178,2]
[351032982,1738302641603,-1457.40172588,0.00019178,2]
[351032995,1738302641718,-816.3827362,0.00019178,2]
[351033098,1738302642772,-25.52553792,0.00019178,2]
[351033100,1738302642783,-500.0,0.00019178,2]
[351033102,1738302642795,-500.0,0.00019178,2]
[351033104,1738302642806,-61.74996411,0.00019178,2]
[351033122,1738302642966,-1019.49003589,0.00019178,2]
[351033124,1738302642978,-523.48,0.00019178,2]
[351033126,1738302642991,-500.0,0.00019178,2]
[351033128,1738302643001,-1704.83,0.00019178,2]
[351033130,1738302643012,-6489.47,0.00019178,2]
[351033132,1738302643023,-335.49746244,0.00019178,2]
[351033134,1738302643033,-500.0,0.00019178,2]
[351033136,1738302643044,-500.0,0.00019178,2]
[351033139,1738302643056,-511.59135628,0.00019178,2]
[351033141,1738302643066,-500.0,0.00019178,2]
[351033143,1738302643078,-164.53372156,0.00019178,2]
[351033145,1738302643089,-500.0,0.00019178,2]
[351033147,1738302643101,-847.04,0.00019178,2]
[351033149,1738302643112,-1189.29,0.00019178,2]
[351033151,1738302643126,-500.0,0.00019178,2]
[351033154,1738302643137,-500.0,0.00019178,2]
[351033156,1738302643149,-500.0,0.00019178,2]
[351033158,1738302643161,-500.0,0.00019178,2]
[351033160,1738302643172,-500.0,0.00019178,2]
[351033162,1738302643184,-150.52,0.00019178,2]
[351033164,1738302643194,-373.74,0.00019178,2]
[351033166,1738302643206,-2323.80576167,0.00019184,2]
[351033169,1738302643216,-150.42794997,0.00019215,2]
[351033171,1738302643227,-269.34142449,0.00019215,2]
[351033173,1738302643238,-2323.80576167,0.00019291,2]
[351033175,1738302643249,-265.9759761,0.00019305,2]
[351033177,1738302643260,-500.0,0.00019314,3]
[351033179,1738302643270,-500.0,0.00019314,3]
[351033181,1738302643281,-2930.412694,0.00019315,3]
[351033185,1738302643293,-153.54865,0.00019315,3]
[351033188,1738302643304,-500.0,0.00019315,3]
[351033190,1738302643315,-2043.192843,0.00019315,3]
[351033192,1738302643325,-500.0,0.00019315,3]
[351033194,1738302643336,-500.0,0.00019315,3]
[351033196,1738302643346,-627.46,0.00019315,3]
[351033198,1738302643357,-603.44,0.00019315,3]
[351033201,1738302643368,-500.0,0.00019315,3]
[351033203,1738302643378,-616.2,0.00019315,3]
[351033205,1738302643389,-500.0,0.00019315,3]
[351033207,1738302643399,-500.0,0.00019315,3]
[351033209,1738302643410,-704.16,0.00019315,3]
[351033211,1738302643421,-500.0,0.00019315,3]
[351033214,1738302643435,-604.89,0.00019315,14]
[351033216,1738302643446,-500.0,0.00019315,3]
[351033218,1738302643456,-500.0,0.00019315,3]
[351033220,1738302643468,-661.35,0.00019315,3]
[351033222,1738302643478,-631.72,0.00019315,3]
[351033225,1738302643491,-500.0,0.00019315,3]
[351033227,1738302643502,-707.95,0.00019315,3]
[351033229,1738302643515,-500.0,0.00019315,3]
[351033231,1738302643527,-614.05,0.00019315,3]
[351033233,1738302643541,-500.0,0.00019315,3]
[351033235,1738302643554,-614.76,0.00019315,3]
[351033238,1738302643565,-500.0,0.00019315,3]
[351033240,1738302643577,-500.0,0.00019315,3]
[351033242,1738302643589,-500.0,0.00019315,3]
[351033282,1738302643877,-561.64,0.00019315,3]
[351033284,1738302643887,-500.0,0.00019315,3]
[351033286,1738302643897,-440.76584795,0.00019315,3]
[351033288,1738302643907,-503.9,0.00019315,3]
[351033290,1738302643917,-602.64,0.00019315,3]
[351033292,1738302643927,-500.0,0.00019315,3]
[351033294,1738302643937,-500.0,0.00019315,3]
[351033296,1738302643947,-616.07,0.00019315,3]
[351033298,1738302643957,-500.0,0.00019315,3]
[351033300,1738302643968,-500.0,0.00019315,3]
[351033302,1738302643977,-500.0,0.00019315,3]
[351033304,1738302643988,-548.59,0.00019315,3]
[351033306,1738302643998,-500.0,0.00019315,3]
[351033308,1738302644008,-560.92,0.00019315,3]
[351033310,1738302644017,-500.0,0.00019315,3]
[351033312,1738302644027,-1509.23,0.00019315,3]
[351033314,1738302644037,-500.0,0.00019315,3]
[351033316,1738302644047,-1193.37,0.00019315,3]
[351033318,1738302644056,-1339.7,0.00019315,3]
[351033320,1738302644066,-500.0,0.00019315,3]
[351033322,1738302644076,-500.0,0.00019315,3]
[351033324,1738302644086,-500.0,0.00019315,3]
[351033326,1738302644096,-834.15,0.00019315,3]
[351033328,1738302644106,-500.0,0.00019315,3]
[351033330,1738302644116,-500.0,0.00019315,3]
[351033333,1738302644126,-500.0,0.00019315,3]
[351033335,1738302644135,-500.0,0.00019315,3]
[351033337,1738302644146,-553.18,0.00019315,3]
[351033339,1738302644156,-683.82,0.00019315,3]
[351033341,1738302644167,-500.0,0.00019315,3]
[351033343,1738302644180,-500.0,0.00019315,3]
[351033345,1738302644190,-545.65,0.00019315,3]
[351033347,1738302644200,-500.0,0.00019315,3]
[351033349,1738302644211,-500.0,0.00019315,3]
[351033351,1738302644222,-500.0,0.00019315,3]
[351033353,1738302644232,-500.0,0.00019315,3]
[351033355,1738302644241,-1174.38,0.00019315,3]
[351033357,1738302644251,-618.04,0.00019315,3]
[351033359,1738302644261,-604.15,0.00019315,3]
[351033361,1738302644271,-500.0,0.00019315,3]
[351033363,1738302644281,-573.61,0.00019315,3]
[351033365,1738302644291,-1527.3,0.00019315,3]
[351033367,1738302644300,-500.0,0.00019315,3]
[351033369,1738302644310,-526.87,0.00019315,3]
[351033371,1738302644320,-500.0,0.00019315,3]
[351033373,1738302644330,-500.0,0.00019315,3]
[351033375,1738302644340,-1262.98,0.00019315,3]
[351033377,1738302644349,-597.11,0.00019315,3]
[351033379,1738302644360,-500.0,0.00019315,3]
[351033381,1738302644370,-515.97,0.00019315,3]
[351033383,1738302644379,-787.14,0.00019315,3]
[351033385,1738302644389,-500.0,0.00019315,3]
[351033387,1738302644399,-558.95,0.00019315,3]
[351033389,1738302644409,-500.0,0.00019315,3]
[351033391,1738302644419,-1542.1,0.00019315,3]
[351033393,1738302644429,-585.15,0.00019315,3]
[351033395,1738302644440,-164.11569519,0.00019315,3]
[351033397,1738302644451,-986.49,0.00019315,3]
[351033399,1738302644462,-500.0,0.00019315,3]
[351033401,1738302644472,-606.1,0.00019315,3]
[351033403,1738302644483,-740.69,0.00019315,3]
[351033405,1738302644493,-903.39,0.00019315,3]
[351033407,1738302644504,-981.44,0.00019315,3]
[351033409,1738302644517,-1022.85,0.00019315,3]
[351033411,1738302644527,-150.823464,0.00019315,3]
[351033413,1738302644538,-500.0,0.00019315,3]
[351033414,1738302644547,-577.34,0.00019315,3]
[351033415,1738302644559,-717.83,0.00019315,3]
[351033416,1738302644569,-500.0,0.00019315,3]
[351033417,1738302644579,-1065.81,0.00019315,3]
[351033418,1738302644591,-560.57,0.00019315,3]
[351033419,1738302644601,-500.0,0.00019315,3]
[351033420,1738302644611,-624.92,0.00019315,3]
[351033421,1738302644621,-500.0,0.00019315,3]
[351033423,1738302644630,-971.16,0.00019315,3]
[351033425,1738302644640,-500.0,0.00019315,3]
[351033427,1738302644650,-534.99,0.00019315,3]
[351033429,1738302644660,-608.32,0.00019315,3]
[351033431,1738302644669,-500.0,0.00019315,3]
[351033433,1738302644680,-909.28,0.00019315,3]
[351033436,1738302644690,-500.0,0.00019315,3]
[351033438,1738302644700,-812.17,0.00019315,3]
[351033440,1738302644711,-627.46,0.00019315,3]
[351033442,1738302644722,-1251.34,0.00019315,3]
[351033444,1738302644732,-500.0,0.00019315,3]
[351033446,1738302644742,-500.0,0.00019315,3]
[351033448,1738302644752,-500.0,0.00019315,3]
[351033450,1738302644762,-500.0,0.00019315,3]
[351033452,1738302644773,-500.0,0.00019315,3]
[351033454,1738302644783,-1038.11,0.00019315,3]
[351033456,1738302644793,-900.52,0.00019315,3]
[351033458,1738302644802,-500.0,0.00019315,3]
[351033460,1738302644812,-626.07,0.00019315,3]
[351033462,1738302644822,-1237.37,0.00019315,3]
[351033465,1738302644832,-926.46,0.00019315,3]
[351033467,1738302644842,-1321.28,0.00019315,3]
[351033469,1738302644852,-500.0,0.00019315,3]
[351033471,1738302644862,-500.0,0.00019315,3]
[351033473,1738302644873,-500.0,0.00019315,3]
[351033475,1738302644882,-500.0,0.00019315,3]
[351033477,1738302644892,-500.0,0.00019315,3]
[351033479,1738302644902,-560.07,0.00019315,3]
[351033481,1738302644912,-1089.91,0.00019315,3]
[351033483,1738302644922,-994.81,0.00019315,3]
[351033485,1738302644932,-1490.3,0.00019315,3]
[351033487,1738302644942,-563.04323533,0.00019315,3]
[351033489,1738302644952,-641.19,0.00019315,3]
[351033491,1738302644964,-859.57,0.00019315,3]
[351033493,1738302644975,-579.27,0.00019315,3]
[351033495,1738302644985,-550.2,0.00019315,3]
[351033497,1738302644995,-500.0,0.00019315,3]
[351033499,1738302645005,-760.46,0.00019315,3]
[351033501,1738302645015,-570.99,0.00019315,3]
[351033503,1738302645026,-500.0,0.00019315,3]
[351033506,1738302645036,-500.0,0.00019315,3]
[351033508,1738302645046,-500.0,0.00019315,3]
[351033510,1738302645056,-500.0,0.00019315,3]
[351033512,1738302645065,-500.0,0.00019315,3]
[351033514,1738302645075,-1194.14,0.00019315,3]
[351033515,1738302645084,-536.26,0.00019315,3]
[351033518,1738302645094,-691.64,0.00019315,3]
[351033520,1738302645103,-500.0,0.00019315,3]
[351033522,1738302645113,-744.94,0.00019315,3]
[351033524,1738302645122,-500.0,0.00019315,3]
[351033526,1738302645131,-706.22,0.00019315,3]
[351033528,1738302645141,-871.53,0.00019315,3]
[351033530,1738302645150,-500.0,0.00019315,3]
[351033532,1738302645160,-500.0,0.00019315,3]
[351033534,1738302645169,-1636.33,0.00019315,3]
[351033536,1738302645179,-500.02,0.00019315,3]
[351033538,1738302645188,-928.93,0.00019315,3]
[351033540,1738302645198,-729.26,0.00019315,3]
[351033542,1738302645208,-996.78,0.00019315,3]
[351033544,1738302645217,-161.04345466,0.00019315,3]
[351033546,1738302645226,-1150.62,0.00019315,3]
[351033548,1738302645236,-692.84,0.00019315,3]
[351033550,1738302645246,-500.0,0.00019315,3]
[351033552,1738302645255,-505.11638068,0.00019315,3]